{"text_format":"2","workbook":"xlsx","n_sheets":27,"sheets":["Portada","Balance de Comprobación","Cambios Act. Netos Disponibles","Act. Netos Dispon. Beneficios","Nota 1","Nota 2","Nota 3","Nota 4","Nota 5","Nota 6","Nota 7","Nota 8","Nota 9","Nota 10","Nota 11","Nota 12","Nota 13","Nota 14","Nota 15","Nota 16","Nota 17","Nota 18","Nota 19","Nota 20","Nota 21","Nota 22","Nota 23"],"not_rendered":{"charts":0,"images":2,"macros":0,"external_links":0,"defined_names":24,"comments":0,"pivot_tables":0},"unopened":[],"bounds":{"document_bytes":16777216,"sheet_cells":100000,"run_cost":"one","rows_first":2000,"rows_last":500,"rows_between":2000,"halvings":0,"cell_chars":16384,"cell_head_chars":4096},"cells_cut":0,"cells_raw":0,"read":"whole","date_system":"1900"}

{"sheet":"Portada","index":0,"n_rows":0,"n_cols":0,"rows_kept":0,"cut":false,"hidden":false,"merged":[]}

{"sheet":"Balance de Comprobación","index":1,"n_rows":68,"n_cols":8,"rows_kept":68,"cut":false,"hidden":false,"merged":[[44,2,44,3],[1,2,1,7],[3,2,3,7],[5,2,5,7]]}
[]
[null,null,"Fondo de Jubilaciones y Pensiones del Poder Judicial"]
[]
[null,null,"Balance de Comprobación"]
[]
[null,null,"Al 31 de Marzo 2018"]
[null," "]
[]
[null,null,"ACTIVO"]
[null,null,"Cuentas Corrientes Y De Ahorro ",null,null,838828078.02999997]
[null,null,"Inversiones En Valores De Emisores Nacionales",null,null,490258909927.77002]
[null,null,"Cuentas Por Cobrar",null,null,1062253693.24]
[null,null,"Productos Por Cobrar Sobre Inversiones",null,null,4103861482.3499999]
[null,null,"Préstamos a Afiliados",null,null,35004702.810000002]
[null,null,"Aportes Por Cobrar A Los Trabajadores",null,null,4194767480.46]
[null,null,"Aportes Por Cobrar Al Patrono",null,null,3739974246.1487999]
[null,null,"Aportes Por Cobrar Al Estado",null,null,283006342.14999998]
[null,null,"Otros Aportes Por Cobrar",null,null,247539784.88999999]
[null,null,"Mobiliario Y Equipo"]
[null,null,"Equipo De Cómputo"]
[null,null,"(Depreciación Acumulada)"]
[null,null,"Costo de Programas Informáticos-Software",null,null,7618670]
[null,null,"(Amortización Programas Informáticos)",null,null,-7618670]
[null,null,"GASTOS"]
[null,null,"Pérdidas por Negociación de Instrumentos Financieros"]
[null,null,"Pérdidas Por Fluctuación Cambiaria",null,null,419435657.99000001]
[null,null,"Pérdidas por Variaciones en la Unidad de Referencia",null,null,9401314.1799999997]
[null,null,"Gastos Generales",null,null,505050688.97000003]
[null,null,"PASIVO"]
[null,null,"Retenciones A Pensionados",{"$nulls":4},1246664971.3099999]
[null,null,"Obligaciones Por Liquidar Empleados",{"$nulls":4},143510.93]
[null,null,"Obligaciones Transitorias por Liquidar",{"$nulls":4},46589706.07]
[null,null,"Retención Por Servicios Recibidos"]
[null,null,"Cotización Seguro De Enfermedad Y Maternidad",{"$nulls":4},505055600.80000001]
[null,null,"Provisión Para Pensiones En Curso De Pago ",{"$nulls":4},500609880754.33002]
[null,null,"INGRESOS"]
[null,null,"Productos Sobre Inversiones De Emisores Nacionales",{"$nulls":4},2880346313.5999999]
[null,null,"Intereses Sobre Saldos En Cuentas Bancarias",{"$nulls":4},44766.63]
[null,null,"Por Negociación de Instrumentos Financieros"]
[null,null,"Ganancias por Fluctuación Cambiaria",{"$nulls":4},116855743.34]
[null,null,"Ganancias por Variaciones en la Unidad de Referencia",{"$nulls":4},290486556.02999997]
[null,null,"Ingresos sobre Préstamos de Afiliados",{"$nulls":4},214889.59]
[null,null,"Otros Ingresos",{"$nulls":4},1750586.36]
[]
[null,null,"Sumas Iguales",null,null,{"$f":"SUM(F10:F28)","v":505698033398.98883},null,{"$f":"SUM(H30:H43)","v":505698033398.99005}]
{"$rows_empty":22}
[null,null,"Observación: Enlace al Manual de Políticas Contables."]

{"sheet":"Cambios Act. Netos Disponibles","index":2,"n_rows":78,"n_cols":9,"rows_kept":78,"cut":false,"hidden":false,"merged":[]}
[null,"Fondo de Jubilaciones y Pensiones"]
[null,"Estado de Cambios en los Activos Netos Disponibles"]
[null,"Por el mes terminado al 31/03/2018"]
[null,"(En colones sin céntimos)"]
[]
[]
[null,null,null,"SALDO MENSUAL",null,null,"SALDO ACUMULADO"]
[null,null,"NOTAS "]
[null,"SALDO INICIAL",null,null,2710447110.3900013,"(1)",null,2908712973,"(2)"]
[]
[null,"INGRESOS",null,null,3289698855.5500007,null,null,10554362778.659998]
[]
[null,"INGRESOS FINANCIEROS",null,3287948269.1900005,null,null,10537830008.679998]
[null,"Productos sobre Inversiones de Emisores Nacionales","Nota 1",2880346313.5999999,null,null,8593415064.5699997]
[null,"Intereses sobre Saldos en Cuentas Corrientes","Nota 2",44766.63,null,null,7128849.1399999997]
[null,"Ganancias por Fluctuación Cambiaria","Nota 3",116855743.34,null,null,858831913.49000001]
[null,"Ganancias por Variaciones en la Unidad de Referencia","Nota 4",290486556.02999997,null,null,1077699192.77]
[null,"Ingresos sobre Préstamos a Afiliados y Pensionados ","Nota 5",214889.59,null,null,754988.71]
[]
[null,"OTROS INGRESOS",null,1750586.36,null,null,16532769.98]
[]
[null,"PLAN DE CONTRIBUCIONES","Nota 6",null,6518675694.4700003,null,null,19329139006.879997]
[]
[null,"RESERVAS EN FORMACION",null,6518675694.4700003,null,null,19329139006.879997]
[null,"De los trabajadores",null,2504882240.46,null,null,7455984576.2200003]
[null,"Del Patrono",null,3246292135.1199999,null,null,9629636266.1700001]
[null,"Del Estado",null,132581783.26000001,null,null,399917648.67000002]
[null,"De los Pensionados",null,634919535.63,null,null,1843600515.8199999]
[null,"Rendimientos Acumulados",null,0]
[]
[null,"UTILIDAD ( PERDIDA DEL EJERCICIO )",null,0]
[]
[null,"TOTAL ADICIONES",null,null,9808374550.0200005,null,null,29883501785.539993]
[]
[null,"SALIDA DE RECURSOS",null,null,9229122804.3899994,null,null,27744727711.389999]
[null,"Por Nuevos Pensionados","Nota 7",9229122804.3899994,null,null,27744727711.389999]
[]
[null,"GASTOS",null,null,933887661.1400001,null,null,2691675852.3599997]
[]
[null,"GASTOS FINANCIEROS",null,428836972.17000002,null,null,1224944116.52]
[null,"Pérdida por Fluctuación Cambiaria","Nota 8",419435657.99000001,null,null,1190346728.6600001]
[null,"Pérdida por Variaciones en la Unidad de Referencia","Nota 9",9401314.1799999997,null,null,34597387.859999999]
[]
[null,"GASTOS GENERALES","Nota 10",505050688.97000003,null,null,1466731735.8399999]
[]
[null,"TOTAL DE DEDUCCIONES",null,null,10163010465.529999,null,null,30436403563.75]
[]
[null,"ACTIVOS NETOS DISPONIBLES PARA BENEFICIOS"]
[null,"FUTUROS AL FINAL DEL PERIODO (3)",null,null,2355811194.880003,null,null,2355811194.7899933]
[]
[]
[null,"Observaciones: "]
[null,"(1) Saldo inicial mensual: Corresponde al total de activos disponibles para beneficios futuros al final del mes de febrero 2018."]
[null,"(2) Saldo acumulado: Pertenece al total de activos disponibles de beneficios futuros al final del año anterior (Diciembre 2017)."]
[null,"(3) Activos Netos Disponibles para Beneficios Futuros al Final del Periodo: Corresponde al total de ingresos menos el total de gastos."]
{"$rows_empty":22}
[null,"Observación: Enlace al Manual de Políticas Contables."]

{"sheet":"Act. Netos Dispon. Beneficios","index":3,"n_rows":83,"n_cols":5,"rows_kept":83,"cut":false,"hidden":false,"merged":[]}
[]
[null,"Fondo de Jubilaciones y Pensiones del Poder Judicial"]
[null,"Estado de Activos Netos Disponibles para Beneficios"]
[null,"AL 31/03/2018"]
[null,"(En colones sin céntimos)"]
[null,null,"NOTAS"]
[null,"DISPONIBILIDADES",null,null,838828078.02999997]
[null,"Cuentas Corrientes y de Ahorro","Nota 11",838828078.02999997]
[]
[null,"INVERSIONES EN VALORES ",null,null,490258909927.77002]
[null,"EN CURSO DE PAGO"]
[null,"Inversiones en Valores de Emisores Nacionales ","Nota 12",490258909927.77002]
[]
[null,"CUENTAS Y PRODUCTOS POR COBRAR SOBRE INVERSIONES",null,null,5166115175.5900002]
[null,"PROVISION PARA PENSIONES EN CURSO DE PAGO"]
[null,"Cuentas Por Cobrar","Nota 13",1062253693.24]
[null,"Productos Por Cobrar Sobre Inversiones De Emisores Nacionales ","Nota 14",4103861482.3499999]
[]
[null,"PRESTAMOS A AFILIADOS Y PENSIONADOS",null,null,35004702.809999995]
[null,"Préstamos por Cobrar","Nota 15",35002327.009999998]
[null,"Productos por Cobrar sobre Préstamos","Nota 15",2375.8000000000002]
[]
[null,"APORTES POR COBRAR",null,null,8465287853.6487999]
[null,"Aportes Por Cobrar A Los Trabajadores","Nota 16",4194767480.46]
[null,"Aportes Por Cobrar Al Patrono","Nota 16",3739974246.1487999]
[null,"Aportes Por Cobrar Al Estado","Nota 16",283006342.14999998]
[null,"Otros Aportes Por Cobrar","Nota 16",247539784.88999999]
[]
[null,"PROPIEDAD, PLANTA Y EQUIPO",null,null,0]
[null,"Mobiliario y Equipo",null,0]
[null,"Equipo de Cómputo",null,0]
[null,"(Depreciación Acumulada)",null,0]
[]
[null,"OTROS ACTIVOS",null,null,0]
[null,"Intangibles","Nota 17",0]
[]
[null,"ACTIVO TOTAL",null,null,504764145737.849]
[]
[null,"CUENTAS POR PAGAR",null,null,1293398188.3099999]
[null,"Retenciones A Pensionados","Nota 18",1246664971.3099999]
[null,"Obligaciones Por Liquidar Empleados y Exempleados","Nota 19",143510.93]
[null,"Obligaciones Transitorias por Liquidar","Nota 20",46589706.07]
[]
[null,"PROVISIONES",null,null,505055600.80000001]
[null,"Cotización Seguro De Enfermedad y Maternidad","Nota 21",505055600.80000001]
[]
[null,"PROVISIONES PARA PENSIONES EN CURSO DE PAGO","Nota 22",null,500609880754.33002]
[]
[null,"PASIVO TOTAL",null,null,502408334543.44]
[]
[null,"ACTIVOS NETOS DISPONIBLES PARA BENEFICIOS FUTUROS (1)",null,null,2355811194.4088745]
[]
[null,"CUENTAS DE ORDEN","Nota 23",null,288377621.39999998]
[]
[null,"Observaciones:"]
[null,"(1) Activos Netos Disponibles para Beneficios Futuros al Final del Periodo: Corresponde al total de ingresos menos el total de gastos."]
{"$rows_empty":26}
[null,"Observación: Enlace al Manual de Políticas Contables."]

{"sheet":"Nota 1","index":4,"n_rows":31,"n_cols":8,"rows_kept":31,"cut":false,"hidden":false,"merged":[[2,1,3,7],[4,1,4,7]]}
[]
[null,"Nota 1:"]
[null,"Productos sobre Inversiones de Emisores Nacionales"]
[]
[null,"al 31 de Marzo de 2018"]
[]
[null,"MENSUAL "]
[]
[null,"PRODUCTOS SOBRE INVERSIONES DE VALORES NACIONALES",null,"COLONES",null,"DOLARES",null,"TOTAL"]
[]
[null,"Intereses devengados",null,2773866688.9499998,null,181919302.63999999,null,2955785991.5899997]
[null,"Amortización de descuento",null,3791062.99,null,180351.55,null,3971414.54]
[null,"Comisión devengada",null,0,null,0,null,0]
[null,"Amortización de prima",null,-147638287.30000001,null,-1146613.6499999999,null,-148784900.95000002]
[null,"Otros intereses devengados",null,0,null,0,null,0]
[null,"Ingresos por Dividendos",null,0,null,69373808.420000002,null,69373808.420000002]
[]
[null,"TOTAL DE PRODUC. SOBRE INVERS. DE VALORES NACIONALES.",null,{"$f":"SUM(D11:D16)","v":2630019464.6399994},null,{"$f":"SUM(F11:F17)","v":250326848.95999998},null,{"$f":"SUM(H11:H17)","v":2880346313.5999999}]
[]
[null,"ACUMULADO"]
[]
[null,"PRODUCTOS SOBRE INVERSIONES DE VALORES NACIONALES",null,"COLONES",null,"DOLARES",null,"TOTAL"]
[]
[null,"Intereses devengados",null,8239536077.5200005,null,547782069.29999995,null,8787318146.8199997]
[null,"Amortización de descuento",null,10970833.280000001,null,354619.64,null,11325452.920000002]
[null,"Comisión devengada",null,0,null,-130184.67,null,-130184.67]
[null,"Amortización de prima",null,-454798761.09999996,null,-3161686.5900000003,null,-457960447.68999994]
[null,"Otros intereses devengados ",null,0,null,0,null,0]
[null,"Ingresos por Dividendos",null,0,null,252862097.19,null,252862097.19]
[]
[null,"TOTAL DE PRODUC. SOBRE INVERS. DE VALORES NACIONALES.",null,{"$f":"SUM(D24:D30)","v":7795708149.6999998},null,{"$f":"SUM(F24:F30)","v":797706914.86999989},null,{"$f":"SUM(H24:H30)","v":8593415064.5699997}]

{"sheet":"Nota 2","index":5,"n_rows":45,"n_cols":12,"rows_kept":45,"cut":false,"hidden":false,"merged":[[2,2,3,6],[4,2,4,6]]}
[]
[null,null,"Nota 2:"]
[null,null,"Intereses sobre Saldos en Cuentas Corrientes"]
[]
[null,null,{"$f":"+'Nota 1'!B5","v":"al 31 de Marzo de 2018"}]
[]
[null,null,"MENSUAL "]
[]
[null,null,"Cuenta Corriente ",null,"Banco",null,"Intereses Ganados en el Mes ",null,"Tipo de Cambio",null,"Total $"]
[]
[null,null,"1234-0",null,"Banco Nacional de Costa Rica "]
[null,null,"229-32-9",null,"Banco de Costa Rica "]
[null,null,"18-1019277",null,"Banco Popular y de Desarrollo Comunal "]
[null,null,"1914-1 $",null,"Banco Popular y de Desarrollo Comunal ",{"$nulls":5},0]
[null,null,"112247-9 $",null,"Banco de Costa Rica ",null,44766.63,null,566.11,null,{"$f":"+G15/I15","v":79.0776174241755}]
[]
[null,null,"Total",null,null,null,{"$f":"SUM(G11:G16)","v":44766.63},null,null,null,{"$f":"SUM(K14:K16)","v":79.0776174241755}]
[]
[null,null,"Acumulado"]
[]
[null,null,"Cuenta Corriente ",null,"Banco",null,"Intereses Ganados en el Periodo"]
[]
[null,null,"1234-0",null,"Banco Nacional de Costa Rica ",null,1647.54]
[null,null,"229-32-9",null,"Banco de Costa Rica ",null,6707871.6399999997]
[null,null,"18-1019277",null,"Banco Popular y de Desarrollo Comunal ",null,6949.79]
[null,null,"1914-1 $",null,"Banco Popular y de Desarrollo Comunal "]
[null,null,"112247-9 $",null,"Banco de Costa Rica ",null,412380.17]
[null,null,"174961-7",null,"Banco de Costa Rica "]
[]
[null,null,"Total",null,null,null,{"$f":"SUM(G23:G29)","v":7128849.1399999997}]
{"$rows_empty":14}
[{"$nulls":11},0]

{"sheet":"Nota 3","index":6,"n_rows":12,"n_cols":6,"rows_kept":12,"cut":false,"hidden":false,"merged":[[2,1,3,5],[4,1,4,5],[13,1,14,5]]}
[]
[null,"Nota 3:"]
[null,"Ganancias por Fluctuación Cambiaria"]
[]
[null,{"$f":"+'Nota 1'!$B$5:$H$5","v":"al 31 de Marzo de 2018"}]
[]
[null,"Cuenta",null,"Mes",null,"Acumulado"]
[null,"Por Cuentas Corrientes",null,187794.83,null,6731499.9100000001]
[null,"En Inversiones En Valores De Emisores Nacionales $",null,115667246.84,null,843382877.39999998]
[null,"Por Cuentas Por Cobrar",null,488.48,null,71006.070000000007]
[null,"Por Productos Por Cobrar Sobre Inversion",null,1000213.19,null,8646530.1099999994]
[null,"Ganancia Total Generada",null,{"$f":"SUM(D8:D11)","v":116855743.34},null,{"$f":"SUM(F8:F11)","v":858831913.49000001}]

{"sheet":"Nota 4","index":7,"n_rows":9,"n_cols":6,"rows_kept":9,"cut":false,"hidden":false,"merged":[[2,1,3,5],[4,1,4,5]]}
[]
[null,"Nota 4:"]
[null,"Ganancias por Variaciones en la Unidad de Referencia"]
[]
[null,{"$f":"+'Nota 1'!$B$5:$H$5","v":"al 31 de Marzo de 2018"}]
[]
[null,"Cuenta",null,"Mes",null,"Acumulado"]
[null,"En valores emitidos por el Gobierno",null,290486556.02999997,null,1077699192.77]
[null,"Ganancia Total Generada",null,{"$f":"SUM(D8:D8)","v":290486556.02999997},null,{"$f":"SUM(F8:F8)","v":1077699192.77}]

{"sheet":"Nota 5","index":8,"n_rows":10,"n_cols":12,"rows_kept":10,"cut":false,"hidden":false,"merged":[[2,1,3,11],[4,1,4,11]]}
[]
[null,"Nota 5:"]
[null,"Ingresos sobre Préstamos a Afiliados y Pensionados "]
[]
[null,{"$f":"+'Nota 1'!$B$5:$H$5","v":"al 31 de Marzo de 2018"}]
[]
[null,"Total de Préstamo",null,"Entidad",null,"Plazo",null,"Tasa actual",null,"Ingreso Por Interes mensual",null,"Ingreso Por Interes Acumulado"]
[]
[null,1000000000,null,"ANEJUD",null,"10 años",null,8.7400000000000005E-2,null,214889.59,null,754988.71]
[{"$nulls":7}," "]

{"sheet":"Nota 6","index":9,"n_rows":28,"n_cols":8,"rows_kept":28,"cut":false,"hidden":false,"merged":[[2,1,3,7],[4,1,4,7],[18,1,18,7],[20,1,20,7]]}
[]
[null,"Nota 6:"]
[null,"PLAN DE CONTRIBUCIONES"]
[]
[null,{"$f":"++'Nota 1'!$B$5:$H$5","v":"al 31 de Marzo de 2018"}]
[]
[null,"Aportes",null,"Porcentajes",null,"Mensual",null,"Acumulado"]
[]
[null,"Trabajadores",null,0.11,null,2504882240.46,null,7455984576.2200003]
[null,"Patrono",null,0.14360000000000001,null,3246292135.1199999,null,9629636266.1700001]
[null,"Estado",null,5.7999999999999996E-3,null,132581783.26000001,null,399917648.67000002]
[null,"Jubilados y Pensionados ",null,0.11,null,634919535.63,null,1843600515.8199999]
[]
[null,"Total Aportes",null,null,null,{"$f":"SUM(F9:F12)","v":6518675694.4700003},null,{"$f":"SUM(H9:H12)","v":19329139006.879997}]
[]
[]
[null,"Notas:   "]
[]
[null,"1-)  Mediante Acuerdo del Consejo Superior N° 2-2018, art I, se autoriza a disminuir el porcentaje del aporte estatal, a partir del mes de enero 2018 pasando de 1.24% a 0.58%, lo anterior por cuanto el Ministerio de Hacienda recortó del Presupuesto del Poder Judicial la suma de ¢1,200,000,000 (Mil doscientos millones de colones)"]
[]
[null,"2-) La Dirección de Gestión Humana mediante oficios 006-CP-DGH-2018 y 009-CP-DGH-2018, remite la información equivalente al 0.66% para los meses de Enero, Febrero y Marzo del año 2018, con el fin de revelar el detalle de la cuenta por cobar por la diferencia porcentual:"]
[]
[]
[null,null,null,"Mes",null,"Monto"]
[null,null,null,"Enero",null,120402999.88]
[null,null,null,"Febrero",null,140520637.69]
[null,null,null,"Marzo",null,136080815.78999999]
[null,null,null,"Total",null,{"$f":"SUM(F25:F27)","v":397004453.36000001}]

{"sheet":"Nota 7","index":10,"n_rows":14,"n_cols":6,"rows_kept":14,"cut":false,"hidden":false,"merged":[[2,1,3,5],[13,1,15,5],[4,1,4,5]]}
[]
[null,"Nota 7:"]
[null,"SALIDA DE RECURSOS"]
[]
[null,{"$f":"+'Nota 6'!B5:H5","v":"al 31 de Marzo de 2018"}]
[]
[null,null,null,"Mensual",null,"Acumulado"]
[]
[null,"Aportes ",null,6518675694.4700003,null,19329139006]
[null,"Rendimientos ",null,2710447109.9199996,null,8415588705.21]
[]
[null,"TOTAL",null,{"$f":"SUM(D9:D10)","v":9229122804.3899994},null,{"$f":"SUM(F9:F10)","v":27744727711.209999}]
[]
[null,"Observación: Corresponde al traslado de todos los recursos de la cuenta patrimonial \"Reserva en formación\" a la cuenta \"Provisión para pensiones en curso de pago\""]

{"sheet":"Nota 8","index":11,"n_rows":12,"n_cols":6,"rows_kept":12,"cut":false,"hidden":false,"merged":[[2,1,3,5],[4,1,4,5]]}
[]
[null,"Nota 8:"]
[null,"Pérdida por Fluctuación Cambiaria"]
[]
[null,{"$f":"+'Nota 7'!B5:F5","v":"al 31 de Marzo de 2018"}]
[]
[null,"Cuenta",null,"Mes",null,"Acumulado"]
[null,"Por Cuentas Corrientes",null,187978.98,null,5710537.3600000003]
[null,"En Inversiones En Valores De Emisores Nacionales $",null,415194567.18000001,null,1172175147.4400001]
[null,"Por Cuentas Por Cobrar",null,92.41,null,934.4]
[null,"Por Productos Por Cobrar Sobre Inversion",null,4053019.42,null,12460109.460000001]
[null,"Pérdida Total Generada",null,{"$f":"SUM(D8:D11)","v":419435657.99000007},null,{"$f":"SUM(F8:F11)","v":1190346728.6600001}]

{"sheet":"Nota 9","index":12,"n_rows":10,"n_cols":6,"rows_kept":10,"cut":false,"hidden":false,"merged":[[3,1,4,5],[5,1,5,5]]}
[]
[null,"Nota 9:"]
[]
[null,"Pérdida por Variaciones en la Unidad de Referencia"]
[]
[null,{"$f":"+'Nota 8'!B5:F5","v":"al 31 de Marzo de 2018"}]
[]
[null,"Cuenta",null,"Mes",null,"Acumulado"]
[null,"En valores emitidos por el Gobierno",null,9401314.1799999997,null,34597387.859999999]
[null,"Pérdida Total Generada",null,{"$f":"SUM(D9:D9)","v":9401314.1799999997},null,{"$f":"SUM(F9:F9)","v":34597387.859999999}]

{"sheet":"Nota 10","index":13,"n_rows":13,"n_cols":6,"rows_kept":13,"cut":false,"hidden":false,"merged":[[2,1,3,5],[4,1,4,5]]}
[]
[null,"Nota 10:"]
[null,"GASTOS GENERALES"]
[]
[null,{"$f":"+'Nota 9'!B6:F6","v":"al 31 de Marzo de 2018"}]
[]
[null,"GASTOS GENERALES",null,"MENSUAL",null,"ACUMULADO"]
[]
[null,"Servicios Bancarios",null,25,null,149077.69]
[null,"Cotización Seguro De Enfermedad y Maternidad",null,505049629.32999998,null,1466500408.51]
[null,"Gastos Diversos",null,1034.6400000000001,null,82249.64]
[]
[null,"TOTAL DE GASTOS GENERALES",null,{"$f":"SUM(D9:D12)","v":505050688.96999997},null,{"$f":"SUM(F9:F12)","v":1466731735.8400002}]

{"sheet":"Nota 11","index":14,"n_rows":20,"n_cols":8,"rows_kept":20,"cut":false,"hidden":false,"merged":[[2,1,3,7],[4,1,4,7]]}
[]
[null,"Nota 11:"]
[null,"Cuentas Corrientes y de Ahorro"]
[]
[null,{"$f":"+'Nota 10'!B5:F5","v":"al 31 de Marzo de 2018"}]
[]
[" ","CUENTAS CORRIENTES Y DE AHORRO PROV.  PARA PENSIONES EN CURSO DE PAGO",null,"TOTAL ¢",null,"TIPO DE CAMBIO",null,"TOTAL $ \n"]
[]
[null,"Banco Nacional de C.R. Cta 1234-0",null,26627607.370000001]
[null,"Banco de Costa Rica Cta 229-32-9",null,649316075.04999995]
[null,"Banco de Costa Rica Cta 174961-7",null,23266870.100000001]
[null,"Banco Popular Cta 1019277-0",null,72135002.230000004]
[null,"Banco Nacional de C.R. 2413-8 ",null,0]
[null,"Banco de Costa Rica 349803-4",null,65.53]
[null,"Banco de Costa Rica 349824-7",null,34.94]
[null,"Banco de Costa Rica Cta. 112247-9 $",null,66589806.390000001,null,566.11,null,{"$f":"+D16/F16","v":117626.97424528802}]
[null,"Banco Nacional de C.R. Cta  601227-7 $",null,609710.38,null,566.11,null,{"$f":"+D17/F17","v":1077.0175054318065}]
[null,"Banco Popular Cta 1914-1 $",null,282906.03999999998,null,566.11,null,499.73687092614506]
[]
[null,"TOTAL EN CUENTAS CORRIENTES Y DE AHORRO",null,{"$f":"SUM(D9:D18)","v":838828078.02999997},null,null,null,{"$f":"SUM(H16:H18)","v":119203.72862164598}]

{"sheet":"Nota 12","index":15,"n_rows":25,"n_cols":8,"rows_kept":25,"cut":false,"hidden":false,"merged":[[2,1,3,7],[6,1,6,3],[15,1,15,3],[4,1,4,7]]}
[]
[null,"Nota 12:"]
[null,"Inversiones en Valores de Emisores Nacionales "]
[]
[null,{"$f":"+'Nota 11'!B5:H5","v":"al 31 de Marzo de 2018"}]
[]
[null,"COLONES"]
[]
[null,"Inv. Valor Facial",null,431078820886.5]
[null,"Primas ",null,9960164178.1599979]
[null,"Descuentos",null,-75961354.450000018]
[]
[null,"SALDO INVERSIONES EN COLONES ",null,{"$f":"SUM(D9:D11)","v":440963023710.20996}]
[]
[]
[null,"SALDO DÓLARES",null,null,null,"TIPO DE CAMBIO ",null,"SALDO EN COLONES"]
[]
[null,"Inv. Valor Facial",null,{"$f":"+H18/F18","v":65921488.070021726},null,566.11,null,37318813611.32]
[null,"Primas ",null,{"$f":"+H19/F19","v":87701.769832718026},null,566.11,null,49648848.920000002]
[null,"Descuentos",null,{"$f":"+H20/F20","v":-8111.220010245358},null,566.11,null,-4591842.76]
[null,"Títulos de Participación",null,{"$f":"+H21/F21","v":21077203.370511033},null,566.11,null,11932015600.08]
[]
[null,"SALDO INVERSIONES EN DÓLARES (COLONIZADO)",null,{"$f":"SUM(D18:D21)","v":87078281.990355223},null,null,null,{"$f":"SUM(H18:H21)","v":49295886217.559998}]
[]
[null,"TOTAL GENERAL:",null,{"$f":"+D13+H23","v":490258909927.76996}]

{"sheet":"Nota 13","index":16,"n_rows":18,"n_cols":4,"rows_kept":18,"cut":false,"hidden":false,"merged":[[2,1,3,3],[4,1,4,3],[14,1,15,3],[17,1,18,3],[17,4,18,5]]}
[]
[null,"Nota 13:"]
[null,"CUENTAS POR COBRAR"]
[]
[null,{"$f":"+'Nota 12'!B5:H5","v":"al 31 de Marzo de 2018"}]
[]
[null,"Cuentas por Cobrar"]
[]
[null,"Títulos vencidos pendientes de cobro",null,468774636.99000001]
[null,"Impuesto Sobre La Renta Por Cobrar (1)",null,593479034.64999998]
[null,"Sumas Pend. De cobrar (2)",null,21.6]
[]
[null,"Saldo:",null,{"$f":"D9+D10+D11","v":1062253693.24}]
[]
[null,"1-) Corresponden aquellas sumas que debe recuperar el Régimen por concepto de exención del 8% del impuesto sobre la renta de los títulos valores, que por su situación particular, no es posible cobrarlos inmediatamente con el vencimiento de los cupones"]
[]
[]
[null,"2-)  En esta cuenta se registrará las cuentas por cobrar, generadas de la captación de inversiones, por comisiones pagadas de más, intereses moratorios u otros."]

{"sheet":"Nota 14","index":17,"n_rows":18,"n_cols":4,"rows_kept":18,"cut":false,"hidden":false,"merged":[[3,1,4,3],[5,1,5,3]]}
[]
[null,"Nota 14:"]
[]
[null,"Productos por cobrar sobre Inversiones de Emisores Nacionales"]
[]
[null,{"$f":"+'Nota 13'!B5:D5","v":"al 31 de Marzo de 2018"}]
[]
[null,"Productos por cobrar sobre Inversiones"]
[]
[null,"Sobre Valores Emitidos Por El Banco Central",null,267766876.87]
[null,"Sobre Valores Emitidos Por El Gobierno",null,2705927842]
[null,"Sobre Valor. Emit. otras Ent Pub. no Fininancieras",null,74899390.760000005]
[null,"Sobre Valores Emitidos Por Bancos Comerciales",null,648397452.25999999]
[null,"Sobre Val. Emit. Bcos. Pub. Ley. Especiales",null,149090561.34]
[null,"Sobre Val. Emit. Bcos. Bancos Privados",null,8962473.4700000007]
[null,"Dividendos por Cobrar",null,248816885.65000001]
[]
[null,"Saldo",null,{"$f":"SUM(D10:D17)","v":4103861482.3500004}]

{"sheet":"Nota 15","index":18,"n_rows":21,"n_cols":4,"rows_kept":21,"cut":false,"hidden":false,"merged":[[2,1,3,3],[4,1,4,3]]}
[]
[null,"Nota 15:"]
[null,"Préstamos por Cobrar"]
[]
[null,{"$f":"+'Nota 14'!B6:D6","v":"al 31 de Marzo de 2018"}]
[]
[null,"SUMAS GIRADAS A:",null," MONTO "]
[]
[null,"ANEJUD:  Débito No. 2863 de la Cta 174961-7 BCR el 9 de diciembre de 2008  (Autorizado por la Dirección Ejecutiva oficio No.9488-DE-08)",null,166244019.15000001]
[null,"ANEJUD: Débito No. 20806860 de la Cta 1234-0 BNCR el 9 de diciembre de 2008 (Autorizado por la Dirección Ejecutiva oficio No.9488-DE-08)",null,410921974.85000002]
[null,"ANEJUD:  Débito No. 379 de la Cta 229-32-9 BCR el 10 de febrero de 2009  (Autorizado por la Dirección Ejecutiva con oficio No. 1123-DE-2009 ).  El desembolso autorizado por esa Dirección Ejecutiva es por ¢422.834.006 de los cuales y a solicitud de ANEJUD con oficio del 10 de febrero de 2009 a Don Walter Jiménez Sorio, Jefe del Departamento Financiero Contable en su oportunidad, se deduce la primera cuota de intereses cancelada por adelantado de ¢6.876.239.  El total girado con el débito No. 379 es ¢415.957.767. ",null,422834006]
[]
[null,"TOTAL DE LOS DESEMBOLSOS",null,{"$f":"SUM(D9:D11)","v":1000000000}]
[]
[null,"Menos. Amortizaciones",null,964997672.99000037]
[]
[null,"Saldo del préstamo",null,{"$f":"+D13-D15","v":35002327.009999633}]
[]
[null,"Mas: Intereses por cobrar",null,2376]
[]
[null,"TOTAL POR COBRAR",null,{"$f":"+D17+D19","v":35004703.009999633}]

{"sheet":"Nota 16","index":19,"n_rows":25,"n_cols":10,"rows_kept":25,"cut":false,"hidden":false,"merged":[[2,1,3,9],[4,1,4,9]]}
[]
[null,"Nota 16:"]
[null,"APORTES POR COBRAR"]
[]
[null,{"$f":"+'Nota 15'!B5:D5","v":"al 31 de Marzo de 2018"}]
[]
[null,"Nota",null,"Sub-nota",null,"APORTES POR COBRAR",null,"Detalle",null,"Total"]
[]
[null,"16.1",null,null,null,"Aporte por cobrar a los trabajadores",null,null,null,4194767480.46]
[null,null,null,"16.1.1",null,"Aporte Ordinario",null,1160497610.5599999]
[null,null,null,"16.1.2",null,"Aporte Ordinario S .Escolar",null,567489618.38]
[null,null,null,"16.1.3",null,"Aporte Reconocimiento de tiempo servido",null,2466780251.52]
[null,"16.2",null,null,null,"Aportes por cobrar al Patrono",null,null,null,3739974246.1487999]
[null,null,null,"16.2.1",null,"Aportes Por Cobrar Poder Jud.-Patrono",null,2998517104.9548001]
[null,null,null,"16.2.2",null,"Apor. x Cobrar Poder Jud.-Patrono (S.E)",null,741457141.19400001]
[null,"16.3",null,null,null,"Aportes por cobrar al Estado",null,null,null,283006342.14999998]
[null,null,null,"16.3.1",null,"Aportes Por Cobrar Poder Jud.-Estado",null,122527324.20999999]
[null,null,null,"16.3.2",null,"Apor. x Cobrar Poder Jud.-Estado (S.E)",null,160479017.94]
[null,"16.4",null,null,null,"Otros aportes por cobrar",null,null,null,247539784.88999999]
[null,null,null,"16.4.1",null,"Sumas canceladas de más a Jubilados y Pensionados",null,140671628.59999999]
[null,null,null,"16.4.2",null,"Aportes Reconocimiento de Tiempo Servido Fuera del Poder Judicial (RTSFPJ)",null,6917691.9700000007]
[null,null,null,"16.4.3",null,"Otros aportes por cobrar entidades deductoras",null,1381561.04]
[null,null,null,"16.4.4",null,"Sumas canceladas de más a Jubilados y Pensionados (Aguinaldo)",null,98568903.280000001]
[]
[{"$nulls":5},"TOTAL ",null,null,null,{"$f":"SUM(J9:J23)","v":8465287853.6487999}]

{"sheet":"Nota 17","index":20,"n_rows":12,"n_cols":8,"rows_kept":12,"cut":false,"hidden":false,"merged":[[2,1,3,7],[4,1,4,7],[11,1,11,7]]}
[]
[null,"Nota 17:"]
[null,"INTANGIBLES"]
[]
[null,{"$f":"+'Nota 16'!B5:J5","v":"al 31 de Marzo de 2018"}]
[]
[null,"Detalle",null,"Monto",null,"Amortización",null,"Total"]
[null,"Sistema inversiones \"Internet Systems Development Insyde S.A\"",null,7618670,null,-7618670,null,0]
[]
[]
[null,"Nota:"]
[null,"Corresponde al registro de la compra del Sistema de Inversiones a la empresa Internet Systems Development Insyde S.A. con un valor de $14,750.00, valorado al tipo de cambio de la fecha de adquisición del activo (15 de agosto de 2007) de ¢516.52, para un total de ¢7,618,670. A dicho monto se descuenta la amortización acumulada al cierre del presente mes que asciende a ¢7,618,670 para un activo neto de ¢0.00. La vida útil del sistema en mención es de 5 años y considerando que fue registrado en setiembre del 2007 se encuentra depreciado en su totalidad, no obstante, a la fecha de este informe se encuentra en funcionamiento. \n\nEn el periodo comprendido entre el 15 de julio a 12 de diciembre del 2011 la Dirección de Tecnología de Información realizó mejoras al sistema de Inversiones por la suma de ¢1.673.895. Lo anterior, de acuerdo con la información suministrada por la Dirección de Tecnología de la Información, mediante correo electrónico del 27 de abril del 2017 y oficio 1635-DTI-2017, dicho monto se encuentra registrado actualmente en los registros contables del Poder Judicial por igual suma.\n\nCon oficio 425-SC-2015 de 26 de agosto del 2015, se realizó la consulta a la Superintendencia de Pensiones (SUPEN) sobre la forma de registro contable de la información suministrada por la Dirección de Tecnología de Información, en virtud de que, en el Manual de Cuentas para el Régimen de Capitalización Colectiva emitido por dicha Superintendencia, no se observa alguna cuenta contable para el registro de la reevaluación de activos intangibles.\n\n La SUPEN ante la consulta realizada, indicó lo siguiente:\n\n“[…] conforme lo establecido en las Normas internacionales de Información Financiera (NIIF), se le comunica que no existe forma alguna de atribuir costo a un activo intangible luego del final de su vida útil: aunque esté en operación y generando beneficios, su valor en libros deberá seguir siendo cero…” \n\n\n\n\n"]

{"sheet":"Nota 18","index":21,"n_rows":45,"n_cols":5,"rows_kept":45,"cut":false,"hidden":false,"merged":[[3,2,4,4],[5,2,5,4]]}
[]
[null,null,"Nota 18:"]
[]
[null,null,"Retenciones A Pensionados"]
[]
[null,null,{"$f":"+'Nota 17'!B5","v":"al 31 de Marzo de 2018"}]
[]
[null,null,"RETENCIONES A JUBILADOS Y PENSIONADOS",null,"TOTAL"]
[]
[null,null,"Impuesto Sobre La Renta",null,429269828.51999998]
[null,null,"Caja Costarricense Seguro Social",null,288599794.32999998]
[null,null,"Caprede",null,116006465.86]
[null,null,"Fondo Socorro Mutuo",null,3142000]
[null,null,"Anejud",null,6104212.4400000004]
[null,null,"I.N.S.",null,786744.5]
[null,null,"Pensiones Alimentarias",null,17182862.420000002]
[null,null,"Banco Popular",null,92629326.879999995]
[null,null,"Invu",null,830489]
[null,null,"Coopeservidores",null,34537611]
[null,null,"Cta 20192-8",null,226747.5]
[null,null,"Asojupen",null,21617849.82]
[null,null,"Coopejudicial",null,133851299.5]
[null,null,"Coocique",null,1977888]
[null,null,"Servicoop",null,2028821.5]
[null,null,"Coopealianza",null,31130898.010000002]
[null,null,"Asosejud",null,6764345.7400000002]
[null,null,"Anic",null,701354.84]
[null,null,"Coopenae",null,38437284.759999998]
[null,null,"Coopecaja R.L.",null,10156414.43]
[null,null,"Asejuque",null,108000]
[null,null,"CoopeSanGabriel",null,823060.05]
[null,null,"Colegio de Abogados de C.R.",null,744000]
[null,null,"CoopeAnde No. 5",null,253144.5]
[null,null,"Coopesparta",null,1404639.73]
[null,null,"Asociación Deportiva del Pod",null,23000]
[null,null,"COOPEMAPRO R.L",null,8244.14]
[null,null,"Coopenacional R.L.",null,108607.5]
[null,null,"COOPEAFM RL",null,116751.52]
[null,null,"SITRAJUD",null,29634.5]
[null,null,"ASODEJUG",null,245000]
[null,null,"Coope San Ramon R.L",null,408975]
[null,null,"COOPEMEP R.L",null,4209329.82]
[null,null,"COOPEANDE N° 1",null,2200345.5]
[]
[null,null,"TOTAL DE RETENCIONES A JUBILADOS Y PENSIONADOS",null,{"$f":"SUM(E10:E44)","v":1246664971.3099999}]

{"sheet":"Nota 19","index":22,"n_rows":15,"n_cols":4,"rows_kept":15,"cut":false,"hidden":false,"merged":[[3,1,4,3],[5,1,5,3]]}
[]
["Nota 19:"]
[]
[null,"Obligaciones Por Liquidar Empleados y Exempleados"]
[]
[null,{"$f":"+'Nota 18'!C6","v":"al 31 de Marzo de 2018"}]
[]
[]
[null,"OBLIGACIONES POR LIQUIDAR EMPL. Y EXEMPL.",null,"TOTAL"]
[]
[null,"VCLO",null,64093.760000000002]
[null,"REMA",null,71769.5]
[null,"ESC",null,7648]
[]
[null,"OBLIGACIONES POR LIQUIDAR EMPL. Y EXEMPL.",null,{"$f":"SUM(D11:D14)","v":143511.26}]

{"sheet":"Nota 20","index":23,"n_rows":18,"n_cols":4,"rows_kept":18,"cut":false,"hidden":false,"merged":[[3,1,4,3],[5,1,5,3]]}
[]
[null,"Nota 20:"]
[]
[null,"Obligaciones Transitorias por Liquidar"]
[]
[null,{"$f":"+'Nota 19'!B6:D6","v":"al 31 de Marzo de 2018"}]
[]
[null,"Obligaciones Transitorias por Liquidar",null,"Saldo"]
[]
[null,"Benef. no retirados y por fallecimiento",null,35949191.659999996]
[null,"Sumas en transito por aclarar",null,2822005]
[null,"Institucione Financieras Banco Popular y de Desarr",null,498197.34]
[null,"Instituciones Gubernamentales-Caja Costarricense d",null,3796451.36]
[null,"Anejud",null,876630.38]
[null,"Transitoria de deducción",null,2414979.6]
[null,"Instituciones Financieras-Banco Popular y de Desar",null,232250.73]
[]
[null,"Total Obligaciones Transitorias por Liquidar",null,{"$f":"SUM(D10:D17)","v":46589706.07}]

{"sheet":"Nota 21","index":24,"n_rows":9,"n_cols":6,"rows_kept":9,"cut":false,"hidden":false,"merged":[[3,1,4,5],[5,1,5,5]]}
[]
[null,"Nota 21:"]
[]
[null,"Cotización Seguro De Enfermedad y Maternidad"]
[]
[null,{"$f":"+'Nota 20'!B6:D6","v":"al 31 de Marzo de 2018"}]
[]
[null,"Entidad",null,"Porcentaje",null,"Monto"]
[null,"Caja Costarricense del Seguro Social",null,8.7499999999999994E-2,null,505055600.80000001]

{"sheet":"Nota 22","index":25,"n_rows":18,"n_cols":10,"rows_kept":18,"cut":false,"hidden":false,"merged":[[2,1,3,9],[4,1,4,9],[17,1,27,9]]}
[]
[null,"Nota 22:"]
[null,"PROVISIONES PARA PENSIONES EN CURSO DE PAGO"]
[]
[null,{"$f":"+'Nota 21'!B6:F6","v":"al 31 de Marzo de 2018"}]
[]
[null,"Nota",null,"Sub-nota",null,"APORTES POR COBRAR",null,"Detalle",null,"Total"]
[]
[null,"22.1",null,null,null,"Recursos recibido de reservas en formación",null,null,null,961073907765.67004]
[null,"22.2",null,null,null,"(Menos) Pago plan de beneficios",null,null,null,460464027011.34003]
[null,null,null,"22.2.1",null,"Traslados a otros regímenes",null,462148487.44999999]
[]
[{"$nulls":5},"TOTAL ",null,null,null,{"$f":"+J9-J10","v":500609880754.33002}]
[]
[]
[null,"Nota:"]
[]
[null,"Mediante oficio 426-SC-2017 con fecha del 22 de diciembre 2017, se informa a la Dirección Ejecutiva sobre el resultado del estudio de Auditoria informe N°624-30-SAFJP-2017, en el que se solicita: \"4.10. Realizar los ajustes correspondientes al registro contable de los aportes patronal y estatal, una vez que Gestión Humana remita los reportes que sustentan las cuentas por cobrar al Poder Judicial, de aquellos periodos en que se utilizó un dato incorrecto, considerando que ya se efectuó un pago producto del cambio en dichos aportes (acuerdo del artículo XXV de sesión de Corte Plena No. 5-17 celebrada el 6 de marzo de 2017) y que a la fecha se utilizan porcentajes incorrectos\", producto de dicho estudio se determina una cuenta por pagar al Poder Judicial de ¢219,712,457.14, la cual se revela como nota al estado financiero hasta que la Dirección Ejecutiva gire instrucciones superiores. Cabe destacar que mediante oficio 129-SC-2018 con fecha de 23 de marzo de 2018, se reitera la información."]

{"sheet":"Nota 23","index":26,"n_rows":9,"n_cols":4,"rows_kept":9,"cut":false,"hidden":false,"merged":[[3,1,4,3],[5,1,5,3]]}
[]
[null,"Nota 23:"]
[]
[null,"CUENTAS DE ORDEN DEUDORAS Y ACREDORAS"]
[]
[null,{"$f":"+'Nota 22'!B5:J5","v":"al 31 de Marzo de 2018"}]
[]
[null,"Concepto",null,"Monto"]
[null,"Cuentas por cobrar por reconocimiento de tiempo servido en otras dependencias o instituciones públicas, de aquellos servidores en condición de propietarios que renunciaron al Poder Judicial. ",null,288377621.39999998]